fUST/lending_fUST_20241028
["ID","MTS","AMOUNT","RATE_DAILY","PERIOD"]
[340909351,1730063444359,-500.0,0.00027397,30]
[340909352,1730063444369,-614.25,0.00027397,30]
[340909353,1730063444379,-737.42,0.00027397,30]
[340909354,1730063444389,-500.0,0.00027397,30]
[340909355,1730063444399,-858.25,0.00027397,30]
[340909356,1730063444409,-500.0,0.00027397,30]
[340909357,1730063444420,-721.28,0.00027397,30]
[340909358,1730063444433,-500.0,0.00027397,30]
[340909359,1730063444443,-855.71,0.00027397,30]
[340909360,1730063444453,-500.0,0.00027397,30]
[340909361,1730063444463,-500.0,0.00027397,30]
[340909362,1730063444475,-513.306784,0.00027397,7]
[340909363,1730063444486,-500.0,0.00027397,30]
[340909364,1730063444495,-513.306792,0.00027397,7]
[340909365,1730063444506,-500.0,0.00027397,30]
[340909366,1730063444516,-787.51,0.00027397,30]
[340909367,1730063444525,-500.0,0.00027397,30]
[340909368,1730063444535,-571.71,0.00027397,30]
[340909369,1730063444545,-500.0,0.00027397,30]
[340909370,1730063444555,-500.0,0.00027397,30]
[340909371,1730063444566,-500.0,0.00027397,30]
[340909372,1730063444577,-500.0,0.00027397,30]
[340909373,1730063444588,-244.561033,0.00027397,30]
[340909374,1730063444597,-672.98,0.00027397,30]
[340909375,1730063444611,-500.0,0.00027397,30]
[340909376,1730063444622,-619.95,0.00027397,30]
[340909377,1730063444632,-500.0,0.00027397,30]
[340909378,1730063444642,-831.6,0.00027397,30]
[340909379,1730063444654,-500.0,0.00027397,30]
[340909380,1730063444664,-539.77,0.00027397,30]
[340909381,1730063444673,-500.0,0.00027397,30]
[340909382,1730063444683,-500.0,0.00027397,30]
[340909383,1730063444693,-500.0,0.00027397,30]
[340909384,1730063444703,-1099.57,0.00027397,30]
[340909385,1730063444713,-525.37,0.00027397,30]
[340909386,1730063444722,-500.0,0.00027397,30]
[340909387,1730063444732,-500.0,0.00027397,30]
[340909388,1730063444742,-632.35,0.00027397,30]
[340909389,1730063444751,-1062.25,0.00027397,30]
[340909390,1730063444761,-500.0,0.00027397,30]
[340909391,1730063444771,-500.0,0.00027397,30]
[340909392,1730063444783,-564.28,0.00027397,30]
[340909393,1730063444797,-500.0,0.00027397,30]
[340909394,1730063444807,-500.0,0.00027397,30]
[340909395,1730063444818,-566.29,0.00027397,30]
[340909396,1730063444827,-992.02,0.00027397,7]
[340909397,1730063444838,-823.59,0.00027397,30]
[340909398,1730063444848,-500.0,0.00027397,30]
[340909399,1730063444857,-636.07,0.00027397,30]
[340909400,1730063444867,-598.1,0.00027397,30]
[340909401,1730063444877,-500.09,0.00027397,30]
[340909402,1730063444886,-500.0,0.00027397,30]
[340909403,1730063444896,-559.91,0.00027397,30]
[340909404,1730063444906,-500.0,0.00027397,30]
[340909405,1730063444916,-500.0,0.00027397,30]
[340909406,1730063444927,-500.0,0.00027397,30]
[340909407,1730063444938,-500.0,0.00027397,30]
[340909408,1730063444949,-500.0,0.00027397,30]
[340909409,1730063444958,-536.31,0.00027397,30]
[340909410,1730063444970,-500.0,0.00027397,30]
[340909411,1730063444979,-500.0,0.00027397,30]
[340909412,1730063444989,-262.01023254,0.00027397,30]
[340909413,1730063444999,-590.52,0.00027397,30]
[340909414,1730063445009,-500.0,0.00027397,30]
[340909415,1730063445018,-571.65,0.00027397,30]
[340909416,1730063445029,-743.47,0.00027397,30]
[340909417,1730063445039,-696.41830404,0.00027397,30]
[340909418,1730063445261,-879.24848131,0.000207,2]
[340909424,1730063447312,-132.47861569,0.000207,2]
[340909425,1730063447322,-1000.0,0.000212,2]
[340909426,1730063447331,-1000.0,0.000217,2]
[340909427,1730063447340,-1000.0,0.000222,2]
[340909428,1730063447350,-165.155358,0.00022972,2]
[340909429,1730063447359,-165.155358,0.00023271,2]
[340909430,1730063447369,-165.155358,0.0002357,2]
[340909431,1730063447379,-165.155358,0.0002387,2]
[340909432,1730063447389,-165.155358,0.00024169,2]
[340909433,1730063447398,-151.0,0.0002599,7]
[340909434,1730063447411,-167.0,0.00027,2]
[340909435,1730063447422,-151.0,0.000273,7]
[340909436,1730063447433,-151.0,0.0002737,7]
[340909437,1730063447444,-151.0,0.00027387,7]
[340909438,1730063447454,-318.36169596,0.00027397,30]
[340909439,1730063447464,-500.0,0.00027397,30]
[340909440,1730063447474,-1065.06,0.00027397,30]
[340909441,1730063447486,-500.0,0.00027397,30]
[340909442,1730063447497,-500.0,0.00027397,30]
[340909443,1730063447508,-890.76,0.00027397,30]
[340909444,1730063447519,-997.5,0.00027397,30]
[340909445,1730063447531,-500.0,0.00027397,30]
[340909446,1730063447543,-501.61,0.00027397,30]
[340909447,1730063447555,-765.77,0.00027397,30]
[340909448,1730063447564,-500.0,0.00027397,30]
[340909449,1730063447574,-955.46,0.00027397,30]
[340909450,1730063447584,-500.0,0.00027397,30]
[340909451,1730063447594,-148.82289835,0.00027397,30]
[340909454,1730064120592,60409.77147081,0.00036205,120]
[340909455,1730064133172,100000.0,0.00036205,120]
[340909457,1730064302225,161.112555,0.00013973,2]
[340909498,1730064631760,-161.112555,0.00023435,2]
[340909500,1730064631771,-300.0,0.00024154,2]
[340909502,1730064631780,-300.0,0.00024154,2]
[340909504,1730064631790,-3175.18210767,0.00024155,2]
[340909535,1730064637829,-20583.15994083,0.00024155,2]
[340909536,1730064637840,-161.246155,0.00024256,2]
[340909537,1730064637851,-161.246155,0.00024322,2]
[340909538,1730064637860,-161.246155,0.00024389,2]
[340909539,1730064637872,-161.246155,0.00024455,2]
[340909540,1730064637882,-161.246155,0.00024522,2]
[340909541,1730064637893,-250.0,0.00024538,2]
[340909542,1730064637906,-597.87232014,0.00024547,2]
[340909543,1730064637916,-161.246155,0.00024588,2]
[340909544,1730064637928,-161.246155,0.00024655,2]
[340909546,1730064637939,-161.246155,0.00024721,2]
[340909548,1730064637960,-161.246155,0.00024788,2]
[340909549,1730064637971,-161.246155,0.00024855,2]
[340909550,1730064637982,-161.246155,0.00024921,2]
[340909551,1730064637992,-161.246155,0.00024988,2]
[340909552,1730064638002,-161.246155,0.00025054,2]
[340909553,1730064638012,-161.246155,0.00025121,2]
[340909554,1730064638021,-161.246155,0.00025187,2]
[340909555,1730064638031,-161.246155,0.00025254,2]
[340909556,1730064638041,-161.246155,0.0002532,2]
[340909557,1730064638051,-161.246155,0.00025387,2]
[340909558,1730064638060,-161.246155,0.00025453,2]
[340909559,1730064638070,-2928.75680544,0.0002547,2]
[340909560,1730064638080,-289.72142456,0.0002547,2]
[340909569,1730064642630,-369.14309169,0.0002547,2]
[340909570,1730064642640,-161.246155,0.0002552,2]
[340909571,1730064642650,-500.0,0.00026,30]
[340909572,1730064642660,-500.0,0.00026,30]
[340909573,1730064642670,-500.0,0.00026,30]
[340909574,1730064642679,-500.0,0.00026,30]
[340909575,1730064642688,-500.0,0.00026,30]
[340909576,1730064642698,-500.0,0.00026,30]
[340909578,1730064642707,-500.0,0.00026,30]
[340909580,1730064642717,-500.0,0.00026,30]
[340909581,1730064642727,-500.0,0.00026,30]
[340909582,1730064642736,-500.0,0.00026,30]
[340909583,1730064642747,-420.0,0.00026189,2]
[340909584,1730064642757,-150.48,0.00026403,13]
[340909585,1730064642766,-528.0,0.00026471,2]
[340909586,1730064642776,-2396.0,0.00026471,2]
[340909587,1730064642790,-1148.0,0.00026471,2]
[340909588,1730064642800,-420.0,0.00026569,2]
[340909589,1730064642809,-167.0,0.00027,2]
[340909590,1730064642819,-157.82250347,0.000272,2]
[340909591,1730064642828,-157.82250347,0.0002729,2]
[340909592,1730064642838,-3000.0,0.000273,2]
[340909593,1730064642847,-200.0,0.000273,13]
[340909594,1730064642856,-612.0,0.000273,2]
[340909595,1730064642866,-3000.0,0.0002731,2]
[340909596,1730064642875,-3000.0,0.0002732,2]
[340909597,1730064642884,-3000.0,0.0002733,2]
[340909598,1730064642894,-3000.0,0.0002734,2]
[340909599,1730064642907,-3000.0,0.0002735,2]
[340909600,1730064642917,-3000.0,0.0002736,2]
[340909601,1730064642926,-3000.0,0.0002737,2]
[340909602,1730064642939,-500.0,0.00027373,2]
[340909603,1730064642951,-500.0,0.00027373,2]
[340909605,1730064642962,-500.0,0.00027373,2]
[340909606,1730064642972,-453.49,0.00027374,10]
[340909607,1730064642983,-271.08022182,0.00027376,2]
[340909608,1730064642994,-24064.2204806,0.00027377,4]
[340909609,1730064643003,-35722.6438976,0.00027377,4]
[340909610,1730064643013,-3000.0,0.0002738,2]
[340909611,1730064643023,-8895.41212487,0.00027384,2]
[340909612,1730064643032,-474.02483388,0.00027386,2]
[340909613,1730064643042,-366.27619879,0.00027386,2]
[340909614,1730064643052,-96256.8819223,0.00027387,4]
[340909615,1730064643062,-56472.16843282,0.00027387,4]
[340909616,1730064643094,-2083.40276057,0.00027387,4]
[340909619,1730064645759,-339.71266514,0.00027387,4]
[340909629,1730065345912,161.112555,0.00013973,2]
[340909630,1730065606854,6237.82,0.0002,10]
[340909652,1730065831956,-300.0,0.00024858,2]
[340909653,1730065832287,-159.10777522,0.00024858,2]
[340909654,1730065832311,-140.89222478,0.00024858,2]
[340909655,1730065832320,-777.70764314,0.00024859,2]
[340909656,1730065832331,-2405.48827777,0.00024859,2]
[340909657,1730065832342,-666.06,0.00024859,2]
[340909658,1730065832354,-5472.30510853,0.00024859,2]
[340909659,1730065832365,-939.13060546,0.00024859,2]
[340909660,1730065832374,-161.112555,0.00025156,2]
[340909661,1730065832383,-165.746054,0.00025267,2]
[340909662,1730065832393,-165.746054,0.00025336,2]
[340909663,1730065832403,-165.746054,0.00025406,2]
[340909664,1730065832413,-165.746054,0.00025475,2]
[340909665,1730065832422,-165.746054,0.00025544,2]
[340909666,1730065832431,-165.746054,0.00025614,2]
[340909667,1730065832441,-165.746054,0.00025683,2]
[340909668,1730065832450,-165.746054,0.00025752,2]
[340909669,1730065832459,-165.746054,0.00025821,2]
[340909670,1730065832468,-165.746054,0.00025891,2]
[340909671,1730065832478,-2408.4269429,0.00025941,2]
[340909677,1730065838370,-6017.31396862,0.00025941,2]
[340909678,1730065838381,-165.746054,0.0002596,2]
[340909679,1730065838390,-2866.65351624,0.00025999,2]
[340909680,1730065838403,-500.0,0.00026,30]
[340909681,1730065838414,-500.0,0.00026,30]
[340909682,1730065838424,-500.0,0.00026,30]
[340909683,1730065838435,-500.0,0.00026,30]
[340909684,1730065838446,-500.0,0.00026,30]
[340909685,1730065838457,-500.0,0.00026,30]
[340909686,1730065838467,-500.0,0.00026,30]
[340909687,1730065838478,-500.0,0.00026,30]
[340909688,1730065838487,-500.0,0.00026,30]
[340909689,1730065838496,-500.0,0.00026,30]
[340909690,1730065838506,-165.746054,0.00026029,2]
[340909691,1730065838515,-165.746054,0.00026099,2]
[340909692,1730065838526,-8425.74091152,0.00026152,2]
[340909693,1730065838536,-515.00642297,0.00026152,2]
[340909694,1730065838545,-165.746054,0.00026168,2]
[340909695,1730065838556,-165.746054,0.00026237,2]
[340909696,1730065838565,-165.746054,0.00026306,2]
[340909697,1730065838575,-165.746054,0.00026376,2]
[340909698,1730065838584,-8425.74091152,0.00026384,2]
[340909699,1730065838594,-152.799798,0.00026403,2]
[340909700,1730065838603,-528.0,0.00026442,2]
[340909701,1730065838612,-2396.0,0.00026442,2]
[340909702,1730065838622,-1148.0,0.00026442,2]
[340909703,1730065838633,-165.746054,0.00026445,2]
[340909704,1730065838649,-165.746054,0.00026514,2]
[340909705,1730065838659,-165.746054,0.00026584,2]
[340909706,1730065838669,-164.24376396,0.00026614,2]
[340909707,1730065838678,-8425.74091152,0.00026714,2]
[340909708,1730065838687,-164.24376394,0.00026835,2]
[340909709,1730065838697,-152.799798,0.00026843,2]
[340909710,1730065838706,-420.0,0.00026934,2]
[340909711,1730065838717,-274.024,0.0002697,2]
[340909712,1730065838727,-152.331,0.00027,15]
[340909713,1730065838739,-167.0,0.00027,2]
[340909714,1730065838749,-164.24376394,0.00027056,2]
[340909715,1730065838758,-612.0,0.000271,2]
[340909716,1730065838769,-8425.74091155,0.00027116,2]
[340909717,1730065838780,-245.9062,0.0002726,2]
[340909718,1730065838791,-451.39,0.00027277,3]
[340909719,1730065838801,-164.24376394,0.00027277,2]
[340909720,1730065838810,-150.45,0.0002728,3]
[340909721,1730065838821,-152.799798,0.00027283,2]
[340909722,1730065838831,-1000.0,0.00027284,2]
[340909723,1730065838841,-271.08022182,0.00027286,2]
[340909724,1730065838853,-21260.89530921,0.00027287,4]
[340909725,1730065838867,-647.10596013,0.00027287,4]
[340909759,1730065840034,-326.21,0.00027277,10]
[340909760,1730065840043,-5089.00421456,0.00027287,4]
[340909762,1730065840053,-30991.7475098,0.00027287,4]
[340909764,1730065840062,-29576.3514934,0.00027297,2]
[340909766,1730065840071,-1000.0,0.000273,7]
[340909767,1730065840081,-200.0,0.000273,13]
[340909768,1730065840090,-3000.0,0.000273,2]
[340909769,1730065840100,-3000.0,0.0002731,2]
[340909770,1730065840109,-3000.0,0.0002732,2]
[340909771,1730065840119,-3000.0,0.0002733,2]
[340909772,1730065840128,-3000.0,0.0002734,2]
[340909773,1730065840138,-420.0,0.00027344,2]
[340909774,1730065840148,-3000.0,0.0002735,2]
[340909775,1730065840158,-1000.0,0.00027352,2]
[340909776,1730065840169,-3000.0,0.0002736,2]
[340909777,1730065840178,-474.02483388,0.00027366,2]
[340909778,1730065840187,-366.2761988,0.00027366,2]
[340909779,1730065840198,-26997.0054839,0.00027367,4]
[340909780,1730065840207,-30991.7475098,0.00027367,4]
[340909781,1730065840217,-153.0,0.0002737,2]
[340909782,1730065840226,-153.0,0.0002737,2]
[340909783,1730065840236,-153.0,0.0002737,2]
[340909784,1730065840245,-153.0,0.0002737,2]
[340909785,1730065840255,-153.0,0.0002737,2]
[340909786,1730065840264,-230.1758612,0.0002737,2]
[340909787,1730065840274,-3000.0,0.0002737,2]
[340909788,1730065840284,-502.6661399,0.00027373,2]
[340909789,1730065840293,-500.0,0.00027373,2]
[340909790,1730065840303,-500.0,0.00027373,2]
[340909791,1730065840313,-26997.0054839,0.00027377,4]
[340909792,1730065840322,-30991.7475098,0.00027377,4]
[340909793,1730065840332,-237.0,0.0002738,17]
[340909794,1730065840341,-3000.0,0.0002738,2]
[340909795,1730065840350,-55469.68488277,0.00027387,4]
[340909796,1730065840363,-5015.02573554,0.00027387,4]
[340909808,1730065845995,-500.0,0.00027373,2]
[340909809,1730065846005,-26207.23664501,0.00027387,4]
[340909835,1730066381686,160.741704,0.00013973,2]
[340909864,1730067032498,-160.741704,0.00022759,2]
[340909865,1730067032508,-166.666666,0.00024997,2]
[340909866,1730067032517,-745.409805,0.00025186,2]
[340909867,1730067032528,-191.918213,0.00025223,2]
[340909868,1730067032539,-456.47863206,0.00025241,2]
[340909880,1730067038544,-2257.00488794,0.00025241,2]
[340909881,1730067038554,-187.86838,0.00025526,2]
[340909882,1730067038563,-187.86838,0.00025596,2]
[340909883,1730067038573,-187.86838,0.00025666,2]
[340909884,1730067038583,-187.86838,0.00025736,2]
[340909885,1730067038593,-187.86838,0.00025806,2]
[340909886,1730067038602,-187.86838,0.00025876,2]
[340909887,1730067038612,-2713.48352,0.00025926,2]
[340909888,1730067038621,-187.86838,0.00025946,2]
[340909889,1730067038630,-300.0,0.00025999,2]
[340909890,1730067038639,-300.0,0.00025999,2]
[340909891,1730067038649,-500.0,0.00026,30]
[340909892,1730067038658,-500.0,0.00026,30]
[340909893,1730067038667,-500.0,0.00026,30]
[340909894,1730067038677,-500.0,0.00026,30]
[340909895,1730067038686,-500.0,0.00026,30]
[340909896,1730067038696,-187.86838,0.00026016,2]
[340909897,1730067038705,-187.86838,0.00026086,2]
[340909898,1730067038714,-187.86838,0.00026156,2]
[340909899,1730067038724,-187.86838,0.00026226,2]
[340909900,1730067038733,-187.86838,0.00026296,2]
[340909901,1730067038742,-187.86838,0.00026366,2]
[340909902,1730067038751,-218.789392,0.00026403,2]
[340909903,1730067038760,-167.092768,0.00026403,2]
[340909904,1730067038769,-2071.442029,0.00026403,2]
[340909905,1730067038778,-875.157569,0.00026403,2]
[340909906,1730067038787,-187.86838,0.00026436,2]
[340909907,1730067038797,-266.2,0.00026442,2]
[340909908,1730067038806,-528.0,0.00026442,2]
[340909909,1730067038817,-1148.0,0.00026442,2]
[340909910,1730067038828,-2396.0,0.00026442,2]
[340909911,1730067038838,-187.86838,0.00026506,2]
[340909912,1730067038848,-187.86838,0.00026576,2]
[340909913,1730067038858,-2713.48352,0.00026611,2]
[340909914,1730067038870,-187.86838,0.00026646,2]
[340909915,1730067038879,-187.86838,0.00026716,2]
[340909916,1730067038888,-2564.48059518,0.00026732,2]
[340909917,1730067038898,-218.789392,0.00026733,2]
[340909918,1730067038908,-2071.442029,0.00026733,2]
[340909919,1730067038919,-875.157569,0.00026733,2]
[340909920,1730067038928,-187.86838,0.00026786,2]
[340909921,1730067038938,-187.86838,0.00026856,2]
[340909922,1730067038953,-3040.30662178,0.000269,2]
[340909923,1730067038962,-393.84655674,0.000269,2]
[340909924,1730067038971,-558.75884143,0.00027,4]
[340909925,1730067038983,-167.0,0.00027,2]
[340909926,1730067038995,-218.789392,0.00027063,2]
[340909927,1730067039006,-2071.442029,0.00027063,2]
[340909928,1730067039016,-875.157569,0.00027063,2]
[340909929,1730067039026,-152.331,0.00027063,15]
[340909930,1730067039035,-8895.41212487,0.00027076,2]
[340909931,1730067039044,-1000.0,0.00027137,2]
[340909932,1730067039053,-1000.0,0.00027145,2]
[340909933,1730067039063,-1000.0,0.00027149,2]
[340909934,1730067039074,-1000.0,0.00027151,2]
[340909935,1730067039083,-1000.0,0.00027166,2]
[340909936,1730067039094,-170.28448867,0.0002717,2]
[340909937,1730067039103,-1000.0,0.00027176,2]
[340909938,1730067039114,-1000.0,0.00027176,2]
[340909939,1730067039124,-1000.0,0.00027178,2]
[340909940,1730067039134,-612.0,0.000272,2]
[340909941,1730067039143,-170.28448867,0.0002721,2]
[340909942,1730067039153,-316.17137826,0.00027224,2]
[340909943,1730067039162,-1000.0,0.00027238,2]
[340909944,1730067039172,-1000.0,0.00027246,2]
[340909945,1730067039181,-1000.0,0.00027256,2]
[340909946,1730067039190,-1000.0,0.00027258,2]
[340909947,1730067039202,-29576.3514934,0.00027266,2]
[340909948,1730067039212,-1000.0,0.0002727,2]
[340909949,1730067039222,-1000.0,0.00027273,2]
[340909950,1730067039231,-300.9,0.00027283,3]
[340909951,1730067039242,-308.34,0.00027283,10]
[340909952,1730067039252,-481.42,0.00027283,10]
[340909953,1730067039265,-1000.0,0.00027287,2]
[340909954,1730067039274,-500.0,0.0002729,14]
[340909955,1730067039283,-500.0,0.00027292,2]
[340909956,1730067039293,-500.0,0.00027292,2]
[340909957,1730067039303,-500.0,0.00027292,2]
[340909958,1730067039313,-500.0,0.00027292,2]
[340909959,1730067039323,-500.0,0.00027292,2]
[340909960,1730067039333,-500.0,0.00027292,2]
[340909961,1730067039344,-500.0,0.00027292,2]
[340909962,1730067039354,-500.0,0.00027292,2]
[340909963,1730067039364,-500.0,0.00027292,2]
[340909964,1730067039373,-500.0,0.00027292,2]
[340909965,1730067039382,-500.0,0.00027292,2]
[340909966,1730067039392,-500.0,0.00027292,2]
[340909967,1730067039402,-500.0,0.00027292,2]
[340909968,1730067039412,-316.27513211,0.00027292,2]
[340909969,1730067039423,-500.0,0.00027292,2]
[340909970,1730067039432,-500.0,0.00027292,2]
[340909971,1730067039441,-500.0,0.00027292,2]
[340909972,1730067039450,-500.0,0.00027292,2]
[340909973,1730067039460,-376.59749515,0.00027292,2]
[340909974,1730067039470,-500.0,0.00027292,2]
[340909975,1730067039480,-500.0,0.00027292,2]
[340909976,1730067039490,-500.0,0.00027292,2]
[340909977,1730067039500,-500.0,0.00027292,2]
[340909978,1730067039511,-500.0,0.00027292,2]
[340909979,1730067039521,-500.0,0.00027292,2]
[340909980,1730067039533,-500.0,0.00027292,2]
[340909981,1730067039543,-500.0,0.00027292,2]
[340909982,1730067039552,-500.0,0.00027292,2]
[340909983,1730067039563,-500.0,0.00027292,2]
[340909984,1730067039573,-500.0,0.00027292,2]
[340909985,1730067039583,-511.63038358,0.00027292,2]
[340909986,1730067039593,-500.0,0.00027292,2]
[340909987,1730067039603,-500.0,0.00027292,2]
[340909988,1730067039612,-500.0,0.00027292,2]
[340909989,1730067039622,-500.0,0.00027292,2]
[340909990,1730067039632,-500.0,0.00027292,2]
[340909991,1730067039642,-180.2549825,0.00027292,2]
[340909992,1730067039652,-500.0,0.00027292,2]
[340909993,1730067039661,-500.0,0.00027292,2]
[340909994,1730067039672,-500.0,0.00027292,2]
[340909995,1730067039682,-500.0,0.00027292,2]
[340909996,1730067039692,-500.0,0.00027292,2]
[340909998,1730067039702,-500.0,0.00027292,2]
[340909999,1730067039712,-500.0,0.00027292,2]
[340910000,1730067039721,-500.0,0.00027292,2]
[340910001,1730067039731,-500.0,0.00027292,2]
[340910002,1730067039742,-500.0,0.00027292,2]
[340910003,1730067039752,-500.0,0.00027292,2]
[340910004,1730067039761,-500.0,0.00027292,2]
[340910005,1730067039770,-500.0,0.00027292,2]
[340910006,1730067039780,-360.26876638,0.00027292,2]
[340910007,1730067039790,-448.08551025,0.00027292,2]
[340910008,1730067039801,-500.0,0.00027292,2]
[340910009,1730067039811,-500.0,0.00027292,2]
[340910011,1730067039820,-279.37546492,0.00027292,2]
[340910012,1730067039830,-500.0,0.00027292,2]
[340910014,1730067039840,-500.0,0.00027292,2]
[340910015,1730067039849,-500.0,0.00027292,2]
[340910016,1730067039858,-500.0,0.00027292,2]
[340910017,1730067039869,-500.0,0.00027292,2]
[340910018,1730067039878,-500.0,0.00027292,2]
[340910019,1730067039889,-500.0,0.00027292,2]
[340910020,1730067039898,-500.0,0.00027292,2]
[340910021,1730067039908,-500.0,0.00027292,2]
[340910022,1730067039918,-500.0,0.00027292,2]
[340910023,1730067039930,-500.0,0.00027292,2]
[340910024,1730067039940,-500.0,0.00027292,2]
[340910025,1730067039949,-500.0,0.00027292,2]
[340910026,1730067039959,-500.0,0.00027292,2]
[340910027,1730067039968,-500.0,0.00027292,2]
[340910028,1730067039977,-500.0,0.00027292,2]
[340910029,1730067039987,-500.0,0.00027292,2]
[340910030,1730067039998,-500.0,0.00027292,2]
[340910031,1730067040008,-500.0,0.00027292,2]
[340910032,1730067040019,-500.0,0.00027292,2]
[340910034,1730067040030,-500.0,0.00027292,2]
[340910036,1730067040041,-500.0,0.00027292,2]
[340910038,1730067040053,-500.0,0.00027292,2]
[340910040,1730067040064,-500.0,0.00027292,2]
[340910042,1730067040075,-500.0,0.00027292,2]
[340910043,1730067040084,-500.0,0.00027292,2]
[340910044,1730067040098,-500.0,0.00027292,2]
[340910046,1730067040108,-500.0,0.00027292,2]
[340910048,1730067040117,-500.0,0.00027292,2]
[340910050,1730067040127,-500.0,0.00027292,2]
[340910051,1730067040136,-222.11981675,0.00027292,2]
[340910053,1730067040146,-500.0,0.00027292,2]
[340910055,1730067040155,-500.0,0.00027292,2]
[340910056,1730067040165,-500.0,0.00027292,2]
[340910058,1730067040175,-500.0,0.00027292,2]
[340910059,1730067040184,-500.0,0.00027292,2]
[340910061,1730067040194,-500.0,0.00027292,2]
[340910062,1730067040203,-500.0,0.00027292,2]
[340910064,1730067040213,-500.0,0.00027292,2]
[340910066,1730067040223,-500.0,0.00027292,2]
[340910067,1730067040232,-500.0,0.00027292,2]
[340910069,1730067040242,-500.0,0.00027292,2]
[340910070,1730067040252,-500.0,0.00027292,2]
[340910071,1730067040266,-500.0,0.00027292,2]
[340910072,1730067040275,-500.0,0.00027292,2]
[340910073,1730067040285,-500.0,0.00027292,2]
[340910074,1730067040294,-500.0,0.00027292,2]
[340910075,1730067040305,-500.0,0.00027292,2]
[340910076,1730067040314,-500.0,0.00027292,2]
[340910077,1730067040323,-500.0,0.00027292,2]
[340910078,1730067040337,-500.0,0.00027292,2]
[340910079,1730067040346,-500.0,0.00027292,2]
[340910080,1730067040356,-500.0,0.00027292,2]
[340910081,1730067040366,-500.0,0.00027292,2]
[340910082,1730067040376,-500.0,0.00027292,2]
[340910083,1730067040386,-500.0,0.00027292,2]
[340910084,1730067040395,-500.0,0.00027292,2]
[340910085,1730067040404,-188.09896421,0.00027293,2]
[340910086,1730067040414,-500.0,0.00027293,2]
[340910087,1730067040423,-258.55630524,0.00027293,2]
[340910088,1730067040433,-500.0,0.00027293,2]
[340910089,1730067040442,-315.6888478,0.00027293,2]
[340910090,1730067040451,-326.61935545,0.00027293,2]
[340910091,1730067040460,-500.0,0.00027293,2]
[340910092,1730067040469,-594.72575366,0.00027293,2]
[340910093,1730067040479,-538.43848079,0.00027293,2]
[340910094,1730067040490,-107747.370374,0.00027294,4]
[340910095,1730067040500,-121582.349517,0.00027294,4]
[340910096,1730067040509,-151.0,0.00027294,7]
[340910097,1730067040519,-151.0,0.00027294,7]
[340910098,1730067040529,-151.0,0.00027294,7]
[340910099,1730067040539,-151.0,0.00027294,7]
[340910100,1730067040548,-311.472158,0.00027294,7]
[340910101,1730067040558,-311.472158,0.00027294,7]
[340910102,1730067040568,-151.0,0.00027294,7]
[340910103,1730067040577,-151.0,0.00027294,7]
[340910104,1730067040587,-151.0,0.00027294,7]
[340910105,1730067040596,-71831.5802494,0.00027296,4]
[340910106,1730067040606,-81054.8996779,0.00027296,4]
[340910107,1730067040615,-151.0,0.00027296,7]
[340910108,1730067040624,-299.397044,0.00027296,7]
[340910109,1730067040634,-151.0,0.00027296,7]
[340910110,1730067040643,-311.472158,0.00027296,7]